bitfinex/quotes_ETHUSD_20241119
["timestamp","ask_amount","ask_price","bid_price","bid_amount"]
[1732013544123,3.98609,3121.1,3121.0,0.56]
[1732013544329,3.98609,3121.1,3121.0,0.55]
[1732013546154,3.98609,3121.1,3120.6,0.01]
[1732013546155,3.2044,3120.7,3120.6,0.01]
[1732013546364,3.2044,3120.7,3120.6,0.01846855]
[1732013547956,3.20395,3121.2,3121.1,0.01]
[1732013549022,3.20379,3121.3,3121.1,0.01]
[1732013549219,3.20389,3121.2,3121.1,0.01]
[1732013552531,3.20399,3121.1,3121.0,0.00846855]
[1732013553163,3.20391,3121.2,3121.0,0.00846855]
[1732013553378,3.20379,3121.3,3121.2,0.00846855]
[1732013554221,3.20361,3121.5,3121.2,0.00846855]
[1732013554437,3.20372,3121.4,3121.3,0.55]
[1732013554768,6.20354,3121.6,3121.5,0.00846855]
[1732013557893,0.7909,3122.3,3121.8,0.00846855]
[1732013558090,3.20304,3122.1,3122.0,0.00846855]
[1732013558395,6.40583,3122.2,3122.0,0.01846855]
[1732013558699,3.20297,3122.1,3122.0,0.01846855]
[1732013561397,3.20297,3122.1,3122.0,0.00846855]
[1732013561591,3.20297,3122.1,3122.0,0.01846855]
[1732013562501,3.20297,3122.1,3122.0,0.00846855]
[1732013562675,3.20297,3122.1,3122.0,0.01846855]
[1732013563373,3.20284,3122.3,3122.2,0.00846855]
[1732013567298,3.20297,3122.1,3122.0,0.01846855]
[1732013570874,3.20317,3121.9,3121.8,0.01]
[1732013571166,3.20307,3122.0,3121.7,0.01]
[1732013571167,3.20328,3121.8,3121.7,0.01]
[1732013573471,3.20328,3121.8,3121.5,0.56846855]
[1732013573472,3.20348,3121.6,3121.5,0.56846855]
[1732013573675,3.20348,3121.6,3121.5,0.01846855]
[1732013576673,3.20338,3121.7,3121.5,0.01846855]
[1732013577278,6.40686,3121.7,3121.5,0.01846855]
[1732013577604,6.40646,3121.9,3121.8,0.00846855]
[1732013578105,3.20321,3121.9,3121.8,0.00846855]
[1732013578312,3.20305,3122.1,3121.8,0.55846855]
[1732013578723,3.20297,3122.1,3121.8,0.55846855]
[1732013579422,3.20311,3122.0,3121.8,0.55846855]
[1732013579990,3.20296,3122.2,3121.8,0.55846855]
[1732013580203,6.40587,3122.2,3122.0,0.00846855]
[1732013580403,6.40588,3122.2,3121.9,0.00846855]
[1732013580616,1.33000143,3122.2,3122.0,0.01]
[1732013580804,3.20297,3122.1,3122.0,0.01846855]
[1732013581003,3.20317,3121.9,3121.8,0.56846855]
[1732013581235,3.20317,3121.9,3121.8,0.01846855]
[1732013581418,3.20317,3121.9,3121.8,0.00846855]
[1732013581622,3.20317,3121.9,3121.8,0.01846855]
[1732013583503,6.40604,3122.1,3121.8,1.37546855]
[1732013583810,3.20298,3122.1,3121.9,0.55]
[1732013584137,3.20312,3122.0,3121.9,0.55]
[1732013584311,3.20298,3122.1,3121.9,0.55]
[1732013584638,3.20298,3122.1,3121.8,0.82546855]
[1732013585395,4.53283143,3122.3,3121.8,0.82546855]
[1732013585597,3.0,3122.2,3122.0,0.00846855]
[1732013586496,3.20259,3122.5,3122.2,0.83526855]
[1732013587997,3.0,3122.4,3122.2,0.83526855]
[1732013588353,1.33000143,3122.7,3122.5,0.01]
[1732013588503,4.53222143,3122.9,3122.8,0.00846855]
[1732013588696,3.20222,3122.9,3122.8,0.00846855]
[1732013589042,3.20222,3122.9,3122.8,0.01846855]
[1732013592846,3.20266,3122.4,3122.3,0.00846855]
[1732013595761,3.20245,3122.6,3122.5,0.00846855]
[1732013595973,6.20245,3122.6,3122.5,0.00846855]
[1732013596127,3.20245,3122.6,3122.5,0.01846855]
[1732013598568,3.20215,3122.9,3122.5,0.01846855]
[1732013598746,3.2023,3122.8,3122.5,0.01846855]
[1732013599690,6.40438,3122.9,3122.7,0.00846855]
[1732013599971,3.20225,3122.8,3122.7,0.00846855]
[1732013600328,3.20212,3123.0,3122.8,0.01]
[1732013600535,3.20212,3123.0,3122.9,0.00846855]
[1732013602267,3.20235,3122.7,3122.5,0.00846855]
[1732013602472,3.20245,3122.6,3122.5,0.00846855]
[1732013603030,3.20266,3122.4,3122.3,0.01846855]
[1732013605067,3.20286,3122.2,3122.1,0.01846855]
[1732013607743,3.20277,3122.3,3122.1,0.01846855]
[1732013607944,3.20286,3122.2,3122.1,0.01846855]
[1732013609043,3.20272,3122.4,3122.1,0.84886855]
[1732013609244,3.20272,3122.4,3122.3,0.01]
[1732013610283,3.20286,3122.2,3122.1,0.01846855]
[1732013612877,4.53270426,3122.2,3122.1,0.00846855]
[1732013613047,4.53270426,3122.2,3121.9,0.01]
[1732013613048,1.32984426,3122.2,3121.9,0.01]
[1732013613246,5.30421426,3122.0,3121.9,0.01]
[1732013614742,3.97437,3122.0,3121.9,0.01]
[1732013618990,3.20307,3122.0,3121.9,0.01]
[1732013625093,3.20307,3122.0,3121.1,3.20399]
[1732013625094,3.20348,3121.6,3121.5,0.01846855]
[1732013626354,3.20348,3121.6,3121.5,0.00846855]
[1732013627072,3.20389,3121.2,3121.1,0.79406855]
[1732013627377,3.2041,3121.0,3120.9,0.01]
[1732013627959,3.2043,3120.8,3120.7,0.01]
[1732013628984,3.2042,3120.9,3120.7,0.01]
[1732013629296,3.2043,3120.8,3120.7,0.01]
[1732013630106,0.776,3121.5,3121.0,0.01]
[1732013630300,4.21168037,3122.0,3121.0,0.01846855]
[1732013630301,3.2038,3121.3,3121.0,0.01846855]
[1732013630594,3.20369,3121.4,3121.0,0.01846855]
[1732013631803,3.20363,3121.5,3121.4,0.01]
[1732013632304,3.20345,3121.7,3121.4,0.01]
[1732013632678,3.20345,3121.7,3121.4,0.7915]
[1732013632877,3.20325,3121.9,3121.4,3.99511]
[1732013633189,3.20325,3121.9,3121.5,0.00846855]
[1732013633503,3.20334,3121.8,3121.5,0.00846855]
[1732013634363,3.0,3122.2,3121.5,0.00846855]
[1732013634364,3.20345,3121.7,3121.5,0.00846855]
[1732013634761,3.20348,3121.6,3121.5,0.00846855]
[1732013635761,3.20358,3121.5,3121.4,0.01]
[1732013635992,2.88226374,3121.8,3121.1,0.83066855]
[1732013636192,3.20376,3121.4,3121.1,0.01846855]
[1732013636712,3.20389,3121.2,3121.1,0.01846855]
[1732013639013,3.20369,3121.4,3121.3,0.01]
[1732013639902,3.20359,3121.5,3121.3,0.01]
[1732013640115,3.20369,3121.4,3121.3,0.01]
[1732013641184,3.20359,3121.5,3121.3,0.01]
[1732013641387,3.20342,3121.7,3121.5,0.00846855]
[1732013641586,3.20348,3121.6,3121.3,0.01846855]
[1732013641818,3.20341,3121.7,3121.3,0.01846855]
[1732013642113,3.20356,3121.6,3121.3,0.01846855]
[1732013642719,3.20341,3121.7,3121.3,0.01846855]
[1732013642923,3.20339,3121.7,3121.4,0.7892]
[1732013643421,3.20354,3121.6,3121.4,0.7892]
[1732013643573,3.20339,3121.7,3121.5,0.01]
[1732013643777,3.20329,3121.8,3121.5,0.01846855]
[1732013644046,3.2032,3121.9,3121.7,0.00846855]
[1732013644849,3.20328,3121.8,3121.7,0.00846855]
[1732013646641,3.2032,3121.9,3121.7,0.00846855]
[1732013647689,3.20328,3121.8,3121.7,0.00846855]
[1732013649657,3.0,3121.9,3121.7,0.00846855]
[1732013650174,3.0,3122.0,3121.7,0.00846855]
[1732013650337,3.20307,3122.0,3121.7,0.01846855]
[1732013650543,3.20319,3121.9,3121.7,0.01846855]
[1732013650886,3.20328,3121.8,3121.7,0.01846855]
[1732013651886,3.2031,3122.0,3121.7,0.01846855]
[1732013652044,3.20323,3121.9,3121.7,0.01846855]
[1732013653655,3.20328,3121.8,3121.7,0.01846855]
[1732013654685,3.20328,3121.8,3121.7,0.00846855]
[1732013654841,3.20328,3121.8,3121.7,0.01846855]
[1732013656583,3.20328,3121.8,3121.7,0.00846855]
[1732013658547,4.53347406,3121.9,3121.5,0.01846855]
[1732013658548,3.20348,3121.6,3121.5,0.01846855]
[1732013661296,3.2041,3121.0,3120.9,0.01]
[1732013661464,3.98576,3121.2,3121.1,0.01]
[1732013661790,3.20396,3121.2,3121.1,0.01]
[1732013662598,3.2041,3121.0,3120.9,0.01846855]
[1732013663173,4.53414406,3121.3,3121.2,0.01]
[1732013664298,5.38500747,3121.3,3120.9,0.00846855]
[1732013664589,1.33029406,3121.3,3121.2,0.01]
[1732013664764,4.53408406,3121.3,3121.2,0.01]
[1732013665156,3.2041,3121.0,3120.9,0.01846855]
[1732013667357,3.2041,3121.0,3120.9,0.00846855]
[1732013667805,0.005,3123.5,3123.2,0.00846855]
[1732013668096,0.005,3123.5,3123.4,0.01846855]
[1732013668650,0.005,3123.5,3123.4,0.00846855]
[1732013668852,0.005,3123.5,3123.4,0.01846855]
[1732013675905,3.20653,3123.5,3123.4,0.01846855]
[1732013676122,0.005,3123.5,3123.4,0.01846855]
[1732013676442,3.20653,3123.5,3123.4,0.01846855]
[1732013680711,3.20174,3123.3,3123.2,0.01]
[1732013680911,3.20184,3123.2,3123.1,0.00846855]
[1732013684051,3.20204,3123.0,3122.9,0.00846855]
[1732013689348,0.005,3123.5,3123.4,4.52189855]
[1732013689643,0.005,3123.5,3123.4,1.77245841]
[1732013689821,0.005,3123.5,3123.4,1.32026855]
[1732013690538,3.20653,3123.5,3123.4,0.01846855]
[1732013690740,3.20653,3123.5,3123.4,0.01]
[1732013692539,3.20174,3123.3,3123.1,0.01]
[1732013692744,3.20184,3123.2,3123.1,0.01]
[1732013698025,3.20204,3123.0,3122.9,0.01846855]
[1732013700322,3.20204,3123.0,3122.9,0.01]
[1732013700548,3.20204,3123.0,3122.7,0.00846855]
[1732013700549,3.20225,3122.8,3122.7,0.01846855]
[1732013702225,3.20225,3122.8,3122.7,0.01]
[1732013702420,3.98295,3122.8,3122.7,0.01]
[1732013702734,3.20245,3122.6,3122.5,0.01]
[1732013703372,3.20266,3122.4,3122.3,0.01]
[1732013703530,3.98298,3122.8,3122.2,0.63112656]
[1732013703869,3.20266,3122.4,3122.3,0.01]
[1732013704671,3.20235,3122.7,3122.1,0.01846855]
[1732013704837,3.20286,3122.2,3122.1,0.01846855]
[1732013705037,3.20307,3122.0,3121.9,0.01846855]
[1732013706061,3.20307,3122.0,3121.9,0.00846855]
[1732013706263,3.20307,3122.0,3121.9,0.01846855]
[1732013711691,3.20298,3122.1,3121.9,0.01846855]
[1732013711933,3.20298,3122.1,3121.9,0.81226855]
[1732013712300,3.99183,3122.4,3121.9,0.81226855]
[1732013712997,3.20297,3122.1,3121.9,0.81226855]
[1732013713720,3.20307,3122.0,3121.9,0.81226855]
[1732013713878,6.40593,3122.2,3121.9,0.81226855]
[1732013714387,3.20303,3122.1,3121.9,0.81226855]
[1732013715320,3.20307,3122.0,3121.9,0.81226855]
[1732013715547,3.20328,3121.8,3121.7,0.01846855]
[1732013716516,3.20286,3122.3,3122.2,0.00846855]
[1732013719556,6.2024,3122.7,3122.6,0.00846855]
[1732013719866,6.20241,3122.7,3122.6,0.00846855]
[1732013720065,6.20241,3122.7,3122.4,0.00846855]
[1732013720066,3.20245,3122.6,3122.4,0.00846855]
[1732013720271,3.20256,3122.5,3122.4,0.00846855]
[1732013720431,3.20266,3122.4,3122.3,0.01]
[1732013720626,3.20266,3122.4,3121.9,1.3138]
[1732013720627,3.20276,3122.3,3122.1,0.01]
[1732013720864,3.20286,3122.2,3122.1,0.01]
[1732013722933,3.20297,3122.1,3122.0,0.01846855]
[1732013723130,3.20297,3122.1,3122.0,0.00846855]
[1732013724046,3.20297,3122.1,3122.0,0.01846855]
[1732013724340,0.450782,3122.3,3121.8,0.01846855]
[1732013724540,3.20317,3121.9,3121.8,0.01846855]
[1732013730737,4.02407,3121.9,3121.8,0.01]
[1732013732268,3.20317,3121.9,3121.8,0.01]
[1732013735557,3.20338,3121.7,3121.6,0.01]
[1732013742398,3.97818,3121.6,3121.5,0.01]
[1732013742597,4.618846,3121.6,3121.5,0.01]
[1732013742990,4.618846,3121.6,3121.1,0.00846855]
[1732013742991,1.415366,3121.6,3121.2,0.01]
[1732013743186,3.20379,3121.3,3121.2,0.01]
[1732013747623,3.20379,3121.3,3121.2,0.01846855]
[1732013751231,3.20379,3121.3,3121.2,0.00846855]
[1732013751659,3.20399,3121.1,3121.0,0.7984]
[1732013752234,3.20399,3121.1,3121.0,0.01]
[1732013756683,3.2041,3121.0,3120.9,0.00846855]
[1732013758354,3.20399,3121.1,3120.9,0.00846855]
[1732013758561,3.2041,3121.0,3120.9,0.00846855]
[1732013764511,3.2041,3121.0,3120.8,0.01]
[1732013764512,3.2042,3120.9,3120.8,0.01]
[1732013767975,3.20395,3121.2,3120.9,0.00846855]
[1732013768184,3.20399,3121.1,3120.9,0.00846855]
[1732013768502,3.20399,3121.1,3121.0,0.01]
[1732013770965,3.2039,3121.2,3121.0,0.01]
[1732013771361,3.20381,3121.3,3121.0,0.01]
[1732013771567,3.20374,3121.4,3121.3,0.01]
[1732013775413,3.20359,3121.5,3121.3,0.01]
[1732013775615,3.20369,3121.4,3121.3,0.01]
[1732013776179,3.20369,3121.4,3121.1,0.01]
[1732013776180,3.20389,3121.2,3121.1,0.01]
[1732013776719,0.7702,3121.3,3121.1,0.01]
[1732013776929,3.20389,3121.2,3121.1,0.01]
[1732013779564,3.20379,3121.3,3121.1,0.01846855]
[1732013779874,3.20379,3121.3,3121.2,0.7855]
[1732013781619,6.40764,3121.3,3121.1,0.01846855]
[1732013781997,3.20379,3121.3,3121.1,0.01846855]
[1732013782304,6.40768,3121.3,3121.1,0.01846855]
[1732013782625,3.20389,3121.2,3121.1,0.01846855]
[1732013784165,3.2042,3120.9,3120.8,0.00846855]
[1732013784668,3.2042,3120.9,3120.8,0.01846855]
[1732013787009,3.2042,3120.9,3120.8,0.00846855]
[1732013788051,3.2044,3120.7,3120.6,0.01]
[1732013789349,3.2044,3120.7,3120.6,0.01846855]
[1732013789734,3.9989,3120.7,3120.6,0.01]
[1732013793853,4.719221,3120.7,3120.6,0.01]
[1732013794232,3.9989,3120.7,3120.6,0.01]
[1732013799966,3.20502,3120.1,3120.0,2.524387]
[1732013800171,4.290822,3120.1,3120.0,2.524387]
[1732013800377,4.290822,3120.1,3120.0,2.514387]
[1732013806214,3.20502,3120.1,3120.0,2.514387]
[1732013813586,3.99382,3120.1,3120.0,2.514387]
[1732013815990,3.20502,3120.1,3120.0,2.514387]
[1732013821344,3.99622,3120.1,3120.0,2.514387]
[1732013823728,3.20502,3120.1,3120.0,2.514387]
[1732013825146,3.20477,3120.4,3120.3,0.7752]
[1732013825444,3.20471,3120.4,3120.3,0.78366855]
[1732013825853,3.20463,3120.5,3120.3,0.78366855]
[1732013826329,3.20463,3120.5,3120.4,0.01]
[1732013830300,3.20348,3121.6,3121.0,3.20403]
[1732013830504,3.20333,3121.8,3121.7,0.00846855]
[1732013830752,3.20308,3122.0,3121.7,0.00846855]
[1732013830922,3.20319,3121.9,3121.7,0.00846855]
[1732013831249,3.20308,3122.0,3121.7,0.00846855]
[1732013831250,3.20328,3121.8,3121.7,0.00846855]
[1732013831715,3.0,3121.8,3121.7,0.00846855]
[1732013832046,6.20328,3121.8,3121.7,0.00846855]
[1732013833528,3.0,3121.8,3121.7,0.00846855]
[1732013833729,3.0,3121.9,3121.7,0.00846855]
[1732013835958,6.20328,3121.8,3121.7,0.00846855]
[1732013837267,3.20348,3121.6,3121.5,0.01846855]
[1732013838232,3.20369,3121.4,3121.3,0.00846855]
[1732013838467,3.20348,3121.6,3121.0,0.01]
[1732013838468,3.20393,3121.2,3121.0,0.01846855]
[1732013838647,3.20399,3121.1,3121.0,0.01846855]
[1732013839713,3.20371,3121.4,3121.0,0.01846855]
[1732013839859,3.20387,3121.3,3121.0,0.01846855]
[1732013840348,3.20371,3121.4,3121.0,0.01846855]
[1732013840536,3.20379,3121.3,3121.0,0.01846855]
[1732013840742,3.20379,3121.3,3121.2,0.01]
[1732013841256,6.20364,3121.5,3121.2,0.01]
[1732013841457,3.0,3121.5,3121.3,0.00846855]
[1732013842171,6.20359,3121.5,3121.3,0.00846855]
[1732013842386,3.20369,3121.4,3121.3,0.00846855]
[1732013843248,3.0,3121.5,3121.3,0.00846855]
[1732013844582,6.20368,3121.5,3121.3,0.00846855]
[1732013845350,3.0,3121.5,3121.3,0.00846855]
[1732013845650,3.20321,3121.9,3121.5,0.01846855]
[1732013846302,3.20306,3122.1,3121.7,0.00846855]
[1732013846461,3.20256,3122.5,3122.4,0.00846855]
[1732013847290,3.20269,3122.4,3122.2,0.01846855]
[1732013850856,6.20262,3122.5,3122.2,0.01846855]
[1732013851066,3.20266,3122.4,3122.2,0.01846855]
[1732013851601,3.0,3122.5,3122.2,0.01846855]
[1732013851785,6.20261,3122.5,3122.2,0.01846855]
[1732013852087,3.20273,3122.4,3122.2,0.01846855]
[1732013853108,3.20276,3122.3,3122.2,0.01846855]
[1732013853295,6.20261,3122.5,3122.2,0.01846855]
[1732013853654,6.20246,3122.6,3122.4,0.00846855]
[1732013854591,3.20276,3122.3,3122.2,0.01846855]
[1732013855598,3.20276,3122.3,3122.2,0.00846855]
[1732013858866,3.20297,3122.1,3122.0,0.01]
[1732013859170,3.20317,3121.9,3121.8,0.00846855]
[1732013861675,6.40621,3122.0,3121.8,0.00846855]
[1732013862000,3.20307,3122.0,3121.8,0.00846855]
[1732013862252,3.20292,3122.2,3122.0,0.00846855]
[1732013862503,3.20269,3122.4,3122.2,0.01846855]
[1732013862675,3.20269,3122.4,3122.2,0.00846855]
[1732013862881,6.40545,3122.4,3122.2,0.01846855]
[1732013863267,3.20269,3122.4,3122.2,0.01846855]
[1732013864209,3.20276,3122.3,3122.2,0.01846855]
[1732013865472,3.20276,3122.3,3122.2,0.00846855]
[1732013867712,3.2022,3122.9,3122.6,0.00846855]
[1732013868009,3.20202,3123.1,3123.0,0.00846855]
[1732013869713,6.20202,3123.1,3123.0,0.00846855]
[1732013870447,3.0,3123.1,3122.8,0.01846855]
[1732013870619,3.20215,3122.9,3122.8,0.01846855]
[1732013872413,0.8269,3123.2,3122.6,0.01846855]
[1732013872414,3.20235,3122.7,3122.6,0.01846855]
[1732013872746,4.01845,3122.7,3122.6,0.00846855]
[1732013872946,3.20256,3122.5,3122.3,0.01846855]
[1732013873149,3.20266,3122.4,3122.3,0.01846855]
[1732013873446,3.20266,3122.4,3122.2,0.01]
[1732013873447,3.20276,3122.3,3122.2,0.01]
[1732013876715,3.20276,3122.3,3122.1,0.00846855]
[1732013876943,3.20286,3122.2,3122.1,0.00846855]
[1732013887223,3.20266,3122.4,3122.2,0.01]
[1732013887591,3.20266,3122.4,3122.3,0.00846855]
[1732013888198,3.0,3122.5,3122.3,0.00846855]
[1732013888486,6.20263,3122.5,3122.3,0.00846855]
[1732013890225,3.20266,3122.4,3122.3,0.00846855]
[1732013890886,6.20263,3122.5,3122.3,0.00846855]
[1732013891288,9.40528,3122.5,3122.3,0.00846855]
[1732013891519,6.20263,3122.5,3122.3,0.00846855]
[1732013891824,3.20266,3122.4,3122.3,0.00846855]
[1732013892192,6.20255,3122.6,3122.3,0.00846855]
[1732013892394,3.0,3122.7,3122.3,0.77356855]
[1732013892595,3.20249,3122.6,3122.3,0.77356855]
[1732013892904,3.0,3122.5,3122.3,0.77356855]
[1732013893503,3.0,3122.7,3122.5,0.00846855]
[1732013893835,6.20245,3122.6,3122.5,0.00846855]
[1732013894031,3.0,3122.7,3122.5,0.00846855]
[1732013894218,3.20231,3122.8,3122.5,0.41609041]
[1732013894533,3.20231,3122.8,3122.5,0.01846855]
[1732013894833,3.20231,3122.8,3122.7,0.00846855]
[1732013895524,6.20231,3122.8,3122.7,0.00846855]
[1732013898703,3.20245,3122.6,3122.5,0.01846855]
[1732013899040,3.20235,3122.7,3122.5,0.01846855]
[1732013899536,3.20245,3122.6,3122.5,0.01846855]
[1732013899704,0.7861,3123.0,3122.5,0.01846855]
[1732013899928,3.20228,3122.8,3122.5,0.01846855]
[1732013900855,3.0,3122.8,3122.5,0.01846855]
[1732013901016,6.20229,3122.8,3122.5,0.01846855]
[1732013901823,3.20245,3122.6,3122.5,0.01846855]
[1732013902545,3.20245,3122.6,3122.5,0.00846855]
[1732013902754,3.20245,3122.6,3122.5,0.01846855]
[1732013903075,3.20235,3122.7,3122.5,0.01846855]
[1732013903376,6.20231,3122.8,3122.5,0.01846855]
[1732013903563,3.20236,3122.7,3122.5,0.01846855]
[1732013904774,6.20225,3122.8,3122.7,0.00846855]
[1732013908950,6.20225,3122.8,3122.5,0.01]
[1732013908951,3.20245,3122.6,3122.5,0.01]
[1732013909487,3.20256,3122.5,3122.4,0.00846855]
[1732013911786,3.20246,3122.6,3122.5,0.01]
[1732013912262,3.20235,3122.7,3122.6,0.00846855]
[1732013917197,3.20245,3122.6,3122.4,0.00846855]
[1732013917445,3.20286,3122.2,3122.1,0.01846855]
[1732013917629,3.20277,3122.3,3122.1,0.01846855]
[1732013918003,3.20286,3122.2,3122.1,0.01846855]
[1732013921628,3.20277,3122.3,3122.1,0.01846855]
[1732013922264,6.4056,3122.3,3122.1,0.01846855]
[1732013922725,3.20272,3122.4,3122.3,0.00846855]
[1732013922953,3.20272,3122.4,3122.3,0.01846855]
[1732013924167,3.20262,3122.5,3122.3,0.01846855]
[1732013924839,3.20266,3122.4,3122.3,0.01846855]
[1732013925025,3.20262,3122.5,3122.3,0.01846855]
[1732013925467,3.20262,3122.5,3121.7,0.01]
[1732013925468,3.20317,3121.9,3121.7,0.01]
[1732013925656,3.20317,3121.9,3121.8,0.01]
[1732013925657,4.01897,3121.9,3121.8,0.01]
[1732013927735,0.8158,3121.9,3121.8,0.01]
[1732013928088,4.01897,3121.9,3121.8,0.01]
[1732013928236,3.20292,3122.2,3121.8,0.82376855]
[1732013928443,3.0,3122.1,3122.0,0.00846855]
[1732013928642,3.20292,3122.2,3122.1,0.01]
[1732013936282,3.20292,3122.2,3122.0,0.00846855]
[1732013936611,3.20292,3122.2,3122.1,0.01]
[1732013937718,3.20292,3122.2,3122.0,0.00846855]
[1732013937719,3.20297,3122.1,3122.0,0.00846855]
[1732013942524,3.20292,3122.2,3122.0,0.00846855]
[1732013942727,3.20292,3122.2,3122.1,0.01]
[1732013942874,3.20271,3122.4,3122.3,0.00846855]
[1732013943074,3.20271,3122.4,3122.3,0.01846855]
[1732013943722,3.20256,3122.5,3122.3,0.01846855]
[1732013944687,3.20266,3122.4,3122.3,0.01846855]
[1732013945793,3.20266,3122.4,3122.3,0.01]
[1732013947694,3.20256,3122.5,3122.3,0.01]
[1732013947898,3.20256,3122.5,3122.4,0.00846855]
[1732013949899,3.20256,3122.5,3122.3,0.01]
[1732013950105,3.20266,3122.4,3122.3,0.01]
[1732013954458,3.20266,3122.4,3122.1,0.01846855]
[1732013954459,3.20286,3122.2,3122.1,0.01846855]
[1732013955035,3.20286,3122.2,3122.1,0.00846855]
[1732013955414,3.20307,3122.0,3121.9,0.01]
[1732013955748,3.20307,3122.0,3121.8,0.00846855]
[1732013955749,3.20317,3121.9,3121.8,0.00846855]
[1732013964646,3.20299,3122.1,3122.0,0.00846855]
[1732013965184,3.20299,3122.1,3122.0,0.01846855]
[1732013966869,3.20287,3122.2,3122.0,0.01846855]
[1732013967040,3.20287,3122.2,3122.0,0.82566855]
[1732013967242,6.40549,3122.4,3122.3,0.00846855]
[1732013972544,3.20286,3122.2,3122.1,0.00846855]
[1732013972743,4.00766,3122.2,3122.1,0.00846855]
[1732013974080,4.00766,3122.2,3122.1,0.01846855]
[1732013975165,3.20286,3122.2,3122.1,0.01846855]
[1732013985964,3.20286,3122.2,3122.1,0.01846855]
[1732013986869,3.20297,3122.1,3122.0,0.00846855]
[1732013987074,4.03097,3122.1,3122.0,0.00846855]
[1732013987286,4.03097,3122.1,3122.0,0.01846855]
[1732013987497,4.03097,3122.1,3122.0,0.00846855]
[1732013988207,4.03097,3122.1,3122.0,0.01846855]
[1732013988508,4.03097,3122.1,3122.0,0.00846855]
[1732013989312,4.03097,3122.1,3122.0,0.01846855]
[1732013989512,4.03097,3122.1,3122.0,0.00846855]
[1732013990072,4.03097,3122.1,3122.0,0.01846855]
[1732013990787,3.20297,3122.1,3122.0,0.01846855]
[1732013995616,3.20297,3122.1,3122.0,0.00846855]
[1732013998123,3.20297,3122.1,3122.0,0.01846855]
[1732013998520,3.20297,3122.1,3121.8,0.01846855]
[1732013998521,3.20317,3121.9,3121.8,0.01846855]
[1732013999181,3.20317,3121.9,3121.8,0.00846855]
[1732013999382,3.20317,3121.9,3121.8,0.01846855]
[1732014000618,3.20317,3121.9,3121.8,0.00846855]
[1732014001278,3.20317,3121.9,3121.8,0.01846855]
[1732014002601,3.20299,3122.1,3122.0,0.00846855]
[1732014008227,3.20299,3122.1,3121.8,0.00846855]
[1732014008228,4.03537,3121.9,3121.8,0.00846855]
[1732014008411,5.3645252,3121.9,3121.8,0.00846855]
[1732014008823,5.3645252,3121.9,3121.8,0.01846855]
[1732014009066,4.03537,3121.9,3121.8,0.01846855]
[1732014009442,3.20317,3121.9,3121.8,0.01846855]
[1732014009646,3.20307,3122.0,3121.8,0.01846855]
[1732014009853,6.20292,3122.2,3122.1,0.00846855]
[1732014010046,3.20292,3122.2,3122.1,0.01846855]
[1732014010566,3.20292,3122.2,3122.1,0.77786855]
[1732014011356,3.20266,3122.4,3122.1,0.77786855]
[1732014011663,3.20266,3122.4,3122.3,0.00846855]
[1732014013030,3.0,3122.7,3122.6,0.00846855]
[1732014013227,3.2019,3123.2,3123.1,0.01]
[1732014013676,3.2019,3123.2,3122.9,0.01846855]
[1732014013677,3.20204,3123.0,3122.9,0.01846855]
[1732014015449,3.20204,3123.0,3122.9,0.01]
[1732014015654,3.20204,3123.0,3122.7,0.00846855]
[1732014015655,3.20225,3122.8,3122.7,0.00846855]
[1732014016293,3.20204,3123.0,3122.7,0.00846855]
[1732014016515,3.20225,3122.8,3122.7,0.00846855]
[1732014016707,6.40418,3123.0,3122.7,0.00846855]
[1732014016904,3.20204,3123.0,3122.7,0.00846855]
[1732014017106,6.40417,3123.0,3122.7,0.00846855]
[1732014017399,3.20225,3122.8,3122.7,0.00846855]
[1732014017897,6.40381,3123.2,3123.1,0.00846855]
[1732014018391,3.20188,3123.2,3123.1,0.00846855]
[1732014022064,0.005,3123.9,3123.1,0.00846855]
[1732014022065,3.20473,3125.3,3125.0,0.00846855]
[1732014022222,3.19996,3125.1,3125.0,0.00846855]
[1732014023056,3.20473,3125.3,3125.0,0.00846855]
[1732014023278,3.20473,3125.3,3124.8,0.01]
[1732014023279,0.005,3125.3,3125.2,0.00846855]
[1732014024670,3.005,3125.3,3125.2,0.00846855]
[1732014024968,0.005,3125.3,3125.2,0.00846855]
[1732014026745,3.005,3125.3,3125.2,0.00846855]
[1732014027469,0.005,3125.3,3125.2,4.03595855]
[1732014027763,0.005,3125.3,3125.2,4.43955441]
[1732014028367,0.005,3125.3,3125.2,1.23976441]
[1732014028888,0.005,3125.3,3125.2,0.83616855]
[1732014029888,0.005,3125.3,3125.2,4.03595855]
[1732014030090,0.005,3125.3,3125.2,0.83616855]
[1732014033556,3.20469,3125.3,3125.2,0.01846855]
[1732014038377,3.20469,3125.3,3125.2,0.00846855]
[1732014038575,3.845113,3125.3,3125.2,0.01846855]
[1732014038820,3.845113,3125.3,3125.2,0.00846855]
[1732014040187,3.845113,3125.3,3125.2,0.01846855]
[1732014040921,3.845113,3125.3,3125.2,0.00846855]
[1732014041345,3.845113,3125.3,3125.2,0.01846855]
[1732014041510,3.845113,3125.3,3125.2,0.00846855]
[1732014042245,3.20469,3125.3,3125.2,0.00846855]
[1732014043830,6.20469,3125.3,3125.2,0.00846855]
[1732014045324,6.96689,3125.3,3125.2,0.00846855]
[1732014046277,3.2,3125.0,3124.9,0.00846855]
[1732014046461,3.2002,3124.8,3124.7,0.00846855]
[1732014046699,3.9717,3124.8,3124.7,0.00846855]
[1732014046963,5.29884659,3124.8,3124.7,0.00846855]
[1732014047279,3.9717,3124.8,3124.7,0.00846855]
[1732014049474,3.2004,3124.6,3124.5,0.01846855]
[1732014049684,3.2004,3124.6,3124.5,0.00846855]
[1732014050043,7.52754659,3124.6,3124.5,0.00846855]
[1732014050832,3.20081,3124.2,3124.1,0.00846855]
[1732014050984,6.20081,3124.2,3124.1,0.00846855]
[1732014051183,7.52795659,3124.2,3124.1,0.00846855]